bitfinex/quotes_SOLUSD_20251208
["timestamp","ask_amount","ask_price","bid_price","bid_amount"]
[1765174244953,8.13327168,134.9,134.86,10.0724589]
[1765174245154,8.13327168,134.9,134.86,72.7913309]
[1765174247459,8.13327168,134.9,134.87,0.55]
[1765174248673,8.13327168,134.9,134.86,72.7913309]
[1765174248874,7.41327168,134.9,134.87,3.20739095]
[1765174249463,8.13327168,134.9,134.87,3.20739095]
[1765174250170,8.13327168,134.9,134.87,0.55]
[1765174250479,8.13327168,134.9,134.86,72.2413309]
[1765174250775,8.13327168,134.9,134.86,72.7913309]
[1765174250972,0.71,134.89,134.86,72.2413309]
[1765174251171,8.12346721,134.89,134.86,72.7913309]
[1765174252171,8.12346721,134.89,134.86,70.13393995]
[1765174252476,8.12289844,134.9,134.86,72.7913309]
[1765174253280,0.71,134.89,134.86,72.7913309]
[1765174253668,8.12289844,134.9,134.87,0.55]
[1765174253876,8.12289844,134.9,134.86,72.2413309]
[1765174254059,0.71,134.89,134.86,72.7913309]
[1765174255166,8.12289844,134.9,134.86,72.7913309]
[1765174256189,0.71,134.89,134.86,65.37626295]
[1765174256377,8.12289844,134.9,134.87,0.55]
[1765174256873,8.12289844,134.9,134.86,64.82626295]
[1765174256874,0.71,134.89,134.86,65.37626295]
[1765174257464,8.12363134,134.89,134.86,62.718872]
[1765174257979,8.12363134,134.89,134.86,65.37626295]
[1765174258182,7.41363134,134.89,134.86,65.37626295]
[1765174258775,7.41363134,134.89,134.86,64.82626295]
[1765174259078,7.41363134,134.89,134.86,65.37626295]
[1765174259382,7.41363134,134.89,134.87,0.55]
[1765174259560,7.41363134,134.89,134.86,65.37626295]
[1765174260583,8.12363134,134.89,134.86,65.37626295]
[1765174260786,3.36739095,134.88,134.84,8.80994492]
[1765174260978,3.36739095,134.88,134.84,9.35994492]
[1765174261181,0.71,134.88,134.84,11.46733587]
[1765174261483,7.41363134,134.89,134.86,2.65739095]
[1765174261681,7.41363134,134.89,134.86,3.20739095]
[1765174261859,7.41363134,134.89,134.86,2.65739095]
[1765174262060,7.41363134,134.89,134.87,3.20739095]
[1765174262260,7.41314012,134.9,134.87,3.20739095]
[1765174262888,7.41179958,134.92,134.89,2.65739095]
[1765174263065,7.41179958,134.92,134.9,3.20739095]
[1765174263266,7.41179958,134.92,134.89,2.65739095]
[1765174263561,8.07179958,134.92,134.89,2.65739095]
[1765174264165,7.41179958,134.92,134.89,3.20739095]
[1765174264372,7.41179958,134.92,134.9,2.65739095]
[1765174264593,7.41179958,134.92,134.9,3.20739095]
[1765174265592,7.41179958,134.92,134.9,2.65739095]
[1765174265979,7.41179958,134.92,134.89,0.55]
[1765174266179,7.41179958,134.92,134.9,2.65739095]
[1765174267494,7.41179958,134.92,134.9,3.20739095]
[1765174267795,7.41179958,134.92,134.9,2.65739095]
[1765174268294,0.66,134.91,134.88,64.82626295]
[1765174268774,0.66,134.91,134.88,62.168872]
[1765174269670,8.07262165,134.91,134.88,62.718872]
[1765174270189,8.07262165,134.91,134.88,62.168872]
[1765174270896,8.07262165,134.91,134.88,64.82626295]
[1765174271776,7.41262165,134.91,134.88,62.168872]
[1765174271993,0.66,134.9,134.87,90.49507187]
[1765174272702,0.66,134.9,134.87,89.94507187]
[1765174272881,0.66,134.9,134.87,90.49507187]
[1765174273594,0.66,134.9,134.87,64.82626295]
[1765174273902,7.41344799,134.89,134.87,62.168872]
[1765174274206,7.41344799,134.89,134.86,2.65739095]
[1765174274500,0.66,134.88,134.86,2.65739095]
[1765174275075,8.07344799,134.89,134.87,2.65739095]
[1765174275499,7.41308812,134.9,134.88,2.65739095]
[1765174277087,0.66,134.89,134.87,2.65739095]
[1765174277290,0.66,134.89,134.86,10.07243555]
[1765174277490,0.66,134.89,134.86,10.62243555]
[1765174278004,0.66,134.89,134.86,65.37626295]
[1765174279401,8.07384993,134.89,134.86,62.168872]
[1765174279811,0.66,134.88,134.86,62.168872]
[1765174281383,7.41421417,134.88,134.86,62.168872]
[1765174281579,0.66,134.9,134.87,3.20739095]
[1765174281783,0.66,134.9,134.88,2.65739095]
[1765174282314,0.66,134.9,134.87,2.65739095]
[1765174282687,8.07310993,134.9,134.87,2.65739095]
[1765174283997,0.66,134.89,134.86,7.96505506]
[1765174284197,0.66,134.89,134.86,10.62244601]
[1765174285214,0.66,134.9,134.86,10.62244601]
[1765174286292,8.07301266,134.9,134.87,2.65739095]
[1765174287511,8.07301266,134.9,134.87,3.20739095]
[1765174287717,8.07301266,134.9,134.87,2.65739095]
[1765174288610,8.07301266,134.9,134.87,10.07181087]
[1765174288807,8.07301266,134.9,134.87,10.62181087]
[1765174289615,7.41234897,134.91,134.87,10.07181087]
[1765174289800,0.66,134.9,134.87,2.65739095]
[1765174290721,0.66,134.9,134.87,4.15708274]
[1765174290905,0.66,134.9,134.87,11.57159917]
[1765174291109,0.66,134.9,134.87,12.12159917]
[1765174292211,7.41234897,134.91,134.87,12.12159917]
[1765174292212,7.41234897,134.91,134.87,11.57159917]
[1765174292413,0.66,134.92,134.89,4.15708274]
[1765174292613,8.07091474,134.94,134.9,4.15708274]
[1765174292918,0.66,134.93,134.9,4.15708274]
[1765174294117,0.66,134.93,134.9,11.56990267]
[1765174294418,0.66,134.93,134.9,12.11990267]
[1765174294713,0.66,134.93,134.9,7.96281993]
[1765174295011,0.66,134.93,134.9,12.11990267]
[1765174295236,0.66,134.93,134.9,11.56990267]
[1765174295826,8.07129425,134.93,134.9,11.56990267]
[1765174295992,8.07129425,134.93,134.89,27.87908743]
[1765174296194,0.66,134.92,134.89,27.87908743]
[1765174298643,0.66,134.92,134.89,90.04795943]
[1765174300421,0.66,134.92,134.89,90.59795943]
[1765174303241,8.07191755,134.92,134.89,62.168872]
[1765174303537,12.22900029,134.92,134.89,62.168872]
[1765174303732,0.66,134.91,134.88,7.41377337]
[1765174307243,0.66,134.91,134.87,75.03595474]
[1765174307244,8.07241143,134.91,134.87,73.74045183]
[1765174307428,8.07241143,134.91,134.87,69.58336909]
[1765174307635,0.66,134.9,134.87,7.41449709]
[1765174308237,8.07292944,134.9,134.86,90.04978671]
[1765174308440,8.07292944,134.9,134.86,85.89270397]
[1765174308620,0.66,134.89,134.86,86.44270397]
[1765174308820,0.66,134.89,134.86,28.43091471]
[1765174309552,7.41234897,134.91,134.86,27.88091471]
[1765174309847,0.66,134.9,134.86,28.43091471]
[1765174310847,8.07291806,134.9,134.86,28.43091471]
[1765174311550,0.71,134.89,134.86,28.43091471]
[1765174315644,0.71,134.89,134.86,27.88091471]
[1765174316122,0.71,134.89,134.86,24.27383197]
[1765174316751,0.71,134.89,134.86,28.43091471]
[1765174319236,0.71,134.89,134.86,24.27383197]
[1765174320652,0.71,134.89,134.86,28.43091471]
[1765174321348,0.71,134.89,134.85,8.16]
[1765174321349,12.2805462,134.89,134.85,7.41557453]
[1765174321750,0.65,134.88,134.86,7.41507993]
[1765174323156,0.65,134.88,134.85,7.41564701]
[1765174326062,0.65,134.88,134.85,7.96564701]
[1765174326253,0.65,134.88,134.85,7.41564701]
[1765174327052,0.65,134.88,134.85,11.57272975]
[1765174329260,0.65,134.9,134.86,4.70708274]
[1765174329759,7.41192548,134.92,134.88,4.15708274]
[1765174329957,0.65,134.91,134.88,4.15708274]
[1765174330145,0.65,134.91,134.89,7.41344799]
[1765174331763,0.65,134.91,134.88,7.413802]
[1765174332265,0.65,134.91,134.88,11.57088474]
[1765174333064,0.65,134.91,134.88,12.12088474]
[1765174333264,0.65,134.91,134.88,11.57088474]
[1765174338359,0.65,134.91,134.88,12.12088474]
[1765174338558,0.65,134.91,134.89,4.15708274]
[1765174339457,0.65,134.91,134.88,11.57088474]
[1765174340764,0.65,134.91,134.89,4.15708274]
[1765174340970,8.10104089,134.94,134.9,4.15708274]
[1765174341167,0.69,134.93,134.91,4.15708274]
[1765174342758,0.69,134.93,134.91,11.56918256]
[1765174343364,16.26034613,134.95,134.92,4.15708274]
[1765174343550,0.69,134.94,134.92,4.15708274]
[1765174344485,0.69,134.94,134.91,11.56918256]
[1765174346856,0.69,134.94,134.91,10.56918256]
[1765174349097,0.69,134.94,134.92,4.15708274]
[1765174350766,0.69,134.98,134.93,4.70708274]
[1765174350970,0.69,134.97,134.96,4.15708274]
[1765174352698,0.69,134.97,134.96,2.65713281]
[1765174353001,0.69,134.98,134.96,2.65713281]
[1765174355801,0.69,134.98,134.95,7.40995977]
[1765174355976,0.69,134.98,134.95,10.06709258]
[1765174359605,0.69,134.98,134.96,2.65713281]
[1765174361519,8.16,135.0,134.97,3.20713281]
[1765174361809,7.40718233,135.01,134.99,2.65713281]
[1765174362105,7.40718233,135.01,134.98,2.65713281]
[1765174362400,0.69,135.0,134.98,2.65713281]
[1765174363205,8.09741786,135.0,134.97,10.06611496]
[1765174363688,0.69,134.99,134.97,10.06611496]
[1765174363889,0.69,134.99,134.97,2.65713281]
[1765174367599,8.0980042,134.99,134.96,18.96599681]
[1765174367798,8.0980042,134.99,134.94,18.96599681]
[1765174368006,0.69,134.98,134.94,26.37631133]
[1765174368219,0.69,134.98,134.93,18.20816224]
[1765174368507,0.69,134.98,134.93,36.72617639]
[1765174368897,0.69,134.98,134.93,18.20816224]
[1765174369098,8.09898629,134.98,134.93,18.20816224]
[1765174369609,0.69,134.97,134.94,2.65713281]
[1765174370814,16.2392587,134.97,134.92,26.3775695]
[1765174371310,16.2392587,134.97,134.93,10.06834428]
[1765174371311,0.72,134.96,134.93,10.06834428]
[1765174371809,0.72,134.97,134.95,2.65713281]
[1765174372189,15.54816771,134.99,134.96,2.65713281]
[1765174372409,0.72,134.98,134.95,2.65713281]
[1765174372611,0.72,134.98,134.95,10.06720552]
[1765174373298,8.12856267,134.98,134.95,10.06720552]
[1765174374706,0.72,134.97,134.95,10.06720552]
[1765174380594,0.72,134.98,134.96,2.65713281]
[1765174381805,8.14,134.99,134.96,2.65713281]
[1765174382007,16.2374074,135.0,134.97,2.65713281]
[1765174382306,0.69,134.99,134.97,2.65713281]
[1765174382615,0.69,135.0,134.98,2.65713281]
[1765174383208,0.69,135.0,134.97,10.06611021]
[1765174384605,0.69,135.0,134.97,9.95411021]
[1765174385419,8.09742244,135.0,134.97,2.65713281]
[1765174385625,8.09742244,135.0,134.96,2.65713281]
[1765174385803,0.69,134.99,134.96,2.65713281]
[1765174386522,8.0980478,134.99,134.96,2.65713281]
[1765174387226,0.69,134.98,134.96,2.65713281]
[1765174387428,0.69,134.98,134.94,26.37657714]
[1765174389317,8.09860735,134.98,134.94,26.37657714]
[1765174389518,0.69,134.97,134.94,26.37657714]
[1765174389838,0.69,134.97,134.95,2.65713281]
[1765174390334,8.09860735,134.98,134.96,2.65713281]
[1765174390517,7.40860735,134.98,134.96,2.65713281]
[1765174390830,0.69,134.97,134.96,2.65713281]
[1765174391630,0.69,134.97,134.95,2.65713281]
[1765174393028,8.09916683,134.97,134.94,18.96599681]
[1765174393223,8.09916683,134.97,134.94,16.308864]
[1765174393426,0.69,134.96,134.94,16.308864]
[1765174393927,0.69,134.96,134.92,26.37763349]
[1765174394729,8.09961343,134.96,134.92,26.37763349]
[1765174395510,0.69,134.95,134.92,26.37763349]
[1765174396411,0.69,134.95,134.92,26.92763349]
[1765174396836,0.69,134.95,134.92,26.37763349]
[1765174400237,0.69,134.95,134.92,23.72050068]
[1765174400438,0.69,134.95,134.92,26.37763349]
[1765174401025,8.10031023,134.95,134.91,17.47884786]
[1765174401336,10.75744304,134.95,134.9,23.72142912]
[1765174401537,0.69,134.94,134.9,23.72142912]
[1765174402116,10.79713281,134.93,134.87,21.74270168]
[1765174402318,10.06893239,134.92,134.87,2.65713281]
[1765174402520,10.75893239,134.92,134.87,18.96599681]
[1765174402741,3.34713281,134.91,134.87,16.308864]
[1765174403241,0.69,134.9,134.87,23.72322496]
[1765174403617,0.69,134.9,134.87,24.27322496]
[1765174403938,0.69,134.9,134.87,23.72322496]
[1765174407737,8.1030368,134.9,134.87,16.308864]
[1765174407922,8.1030368,134.9,134.86,7.41487048]
[1765174408121,0.69,134.89,134.86,7.41487048]
[1765174421253,0.69,134.91,134.87,4.70819388]
[1765174421461,0.69,134.91,134.88,4.70819388]
[1765174421826,0.69,134.91,134.87,12.9681388]
[1765174422043,7.41125027,134.93,134.88,4.15819388]
[1765174422328,8.10125027,134.93,134.89,4.15819388]
[1765174422549,0.69,134.92,134.89,4.70819388]
[1765174423341,16.26082092,134.94,134.9,4.70819388]
[1765174423848,16.26082092,134.94,134.9,4.15819388]
[1765174424048,16.26082092,134.94,134.91,0.55]
[1765174425153,16.26082092,134.94,134.91,4.70819388]
[1765174427557,8.10082092,134.94,134.91,4.70819388]
[1765174427879,0.69,134.96,134.93,4.15819388]
[1765174428035,8.09963209,134.96,134.93,4.15819388]
[1765174428234,8.09963209,134.96,134.93,4.70819388]
[1765174428728,7.40926117,134.97,134.94,4.15819388]
[1765174428955,0.69,134.98,134.95,4.15819388]
[1765174430949,0.69,134.98,134.96,4.15819388]
[1765174431646,8.09873805,134.98,134.95,4.15819388]
[1765174432155,0.71,134.97,134.95,4.15819388]
[1765174433962,0.71,134.97,134.96,4.15819388]
[1765174435955,0.71,134.97,134.94,7.96036735]
[1765174436156,0.71,134.97,134.96,4.15819388]
[1765174436467,0.71,134.97,134.95,4.15819388]
[1765174437462,8.11922043,134.97,134.93,19.72926844]
[1765174437770,8.11922043,134.97,134.93,11.56926844]
[1765174438069,8.87,134.96,134.92,15.57160606]
[1765174438271,8.87,134.96,134.91,20.46705788]
[1765174438440,16.28043013,134.95,134.91,27.87932524]
[1765174438941,0.71,134.94,134.91,27.87932524]
[1765174439139,0.71,134.94,134.91,20.46705788]
[1765174439643,0.71,134.94,134.91,16.308864]
[1765174440757,0.71,134.94,134.91,23.72104093]
[1765174445462,0.71,134.94,134.91,27.87923481]
[1765174445963,0.71,134.94,134.91,28.42923481]
[1765174446365,0.72,134.96,134.92,0.55]
[1765174446667,0.72,134.96,134.93,4.15819388]
[1765174446965,0.72,134.95,134.93,4.15819388]
[1765174447746,0.72,134.95,134.93,7.41125027]
[1765174449257,0.72,134.96,134.93,7.41125027]
[1765174455394,0.72,134.98,134.94,4.70819388]
[1765174455676,0.72,134.98,134.95,4.15819388]
[1765174456567,0.72,134.98,134.95,11.56797868]
[1765174457076,0.72,134.98,134.95,7.4097848]
[1765174458676,0.72,134.98,134.94,16.22064597]
[1765174459649,0.72,134.98,134.94,16.77064597]
[1765174461373,0.72,134.98,134.94,20.92883985]
[1765174462876,0.72,134.98,134.95,7.95988723]
[1765174463677,0.72,134.98,134.95,7.40988723]
[1765174464093,0.72,134.98,134.95,12.11808111]
[1765174468283,0.72,134.98,134.95,20.25808111]
[1765174468664,15.54763413,135.0,134.95,20.25808111]
[1765174468966,0.66,134.98,134.95,20.25808111]
[1765174469978,0.66,134.98,134.95,15.54988723]
[1765174470169,0.66,134.98,134.95,16.09988723]
[1765174470570,0.66,134.98,134.95,20.25808111]
[1765174471490,8.0685817,134.98,134.95,8.14]
[1765174471686,8.0685817,134.98,134.94,16.22040652]
[1765174472000,0.66,134.97,134.94,16.22040652]
[1765174472773,0.66,134.97,134.95,7.41012292]
[1765174479161,0.66,134.98,134.95,10.6176942]
[1765174491797,7.40761968,135.0,134.95,7.41012292]
[1765174492004,0.72,134.99,134.96,0.55]
[1765174492394,0.72,134.99,134.95,10.0676942]
[1765174492587,0.72,134.99,134.95,10.6176942]
[1765174499211,0.72,134.99,134.95,7.96012292]
[1765174499517,0.72,134.99,134.95,10.6176942]
[1765174501918,0.72,134.99,134.95,29.14307397]
[1765174502096,0.72,134.99,134.96,0.55]
[1765174502611,7.40521327,135.04,134.98,16.308864]
[1765174502775,0.69,135.01,134.99,2.65757128]
[1765174502979,0.69,135.01,134.95,26.48550269]
[1765174503210,3.34757128,135.01,134.95,42.24436669]
[1765174503413,7.4074074,135.0,134.95,44.90193797]
[1765174503708,8.0974074,135.0,134.95,44.90193797]
[1765174503879,0.69,134.99,134.95,44.90193797]
[1765174504079,0.69,134.99,134.95,42.79436669]
[1765174504495,0.69,134.99,134.95,23.71898692]
[1765174504885,0.69,134.99,134.95,24.26898692]
[1765174506507,0.69,134.99,134.95,26.9265582]
[1765174507189,0.69,134.99,134.95,37.72412948]
[1765174507590,0.69,134.99,134.95,26.9265582]
[1765174507889,0.69,134.99,134.95,37.72412948]
[1765174509802,0.69,134.99,134.95,26.9265582]
[1765174510115,0.69,134.99,134.95,49.17267439]
[1765174511620,8.0981752,134.99,134.95,23.71898692]
[1765174512112,0.69,134.98,134.95,34.5165582]
[1765174512521,0.69,134.98,134.95,35.0665582]
[1765174512904,0.69,134.98,134.95,37.72412948]
[1765174513998,8.09654593,135.02,134.97,2.65757128]
[1765174514215,0.69,135.02,134.99,2.65757128]
[1765174514515,0.69,135.01,134.99,2.65757128]
[1765174514716,0.69,135.04,135.0,20.1575162]
[1765174514898,23.0311684,135.05,135.03,2.65757128]
[1765174515099,0.79,135.05,135.03,2.65757128]
[1765174515299,0.79,135.05,135.04,2.65757128]
[1765174515504,0.1,135.05,135.04,10.16126087]
[1765174515706,0.1,135.05,135.04,19.52120579]
[1765174515905,0.1,135.05,135.04,26.92641906]
[1765174516093,0.1,135.05,135.04,35.06641906]
[1765174523441,0.1,135.05,135.04,34.51641906]
[1765174523613,0.79,135.05,135.04,34.51641906]
[1765174523815,0.79,135.05,135.04,7.50368959]
[1765174524026,0.79,135.05,135.03,23.71445982]
[1765174524347,0.79,135.05,135.03,19.27347396]
[1765174524550,0.79,135.05,135.03,2.96460996]
[1765174524845,3.44757128,135.05,135.0,7.40720602]
[1765174525023,3.44757128,135.05,135.01,17.5680396]
[1765174525223,0.69,135.04,135.01,17.5680396]
[1765174525722,8.09533516,135.04,135.0,16.308864]
[1765174526230,0.69,135.03,135.0,16.308864]
[1765174526450,0.69,135.03,135.01,7.40679987]
[1765174527232,0.69,135.03,135.01,15.50213503]
[1765174527739,0.69,135.03,135.01,7.40679987]
[1765174529116,0.69,135.03,135.01,29.64467096]
[1765174529449,0.69,135.03,135.01,7.40679987]
[1765174529813,8.09579355,135.03,135.0,38.54673509]
[1765174530132,8.09579355,135.03,135.0,16.308864]
[1765174530333,0.69,135.02,135.0,16.308864]
[1765174530545,0.69,135.02,135.0,23.71623798]
[1765174531647,0.69,135.02,135.0,33.77923364]
[1765174533128,0.69,135.02,135.0,36.43680492]
[1765174533927,0.69,135.02,135.0,33.77923364]
[1765174536147,0.69,135.02,135.0,36.43680492]
[1765174536732,0.69,135.02,135.0,37.92815581]
[1765174537450,0.69,135.02,135.0,33.77923364]
[1765174537838,0.69,135.02,134.99,7.40779384]
[1765174538043,8.09634395,135.02,134.98,7.40829922]
[1765174538244,8.09634395,135.02,134.98,27.96608539]
[1765174538450,0.69,135.01,134.98,27.96608539]
[1765174539456,0.69,135.01,134.98,32.11500756]
[1765174543556,18.61247529,135.05,135.0,4.14892217]
[1765174543557,22.24281742,135.04,135.0,4.14892217]
[1765174543858,0.69,135.04,135.01,4.14892217]
[1765174544062,0.69,135.03,135.01,4.14892217]
[1765174544232,0.69,135.04,135.01,4.14892217]
[1765174544437,0.69,135.04,135.01,16.53784434]
[1765174544644,0.69,135.04,135.01,12.38892217]
[1765174545040,4.83892217,135.04,135.01,12.38892217]
[1765174545440,0.69,135.03,134.99,38.21671038]
[1765174545859,0.69,135.03,135.0,22.23951962]
[1765174547359,0.69,135.03,135.0,29.64677825]
[1765174547758,12.24488505,135.03,134.98,4.14892217]
[1765174547942,12.24488505,135.03,134.98,23.2115542]
[1765174548142,0.69,135.02,134.98,23.2115542]
[1765174548446,0.69,135.02,134.98,19.06263203]
[1765174549138,0.69,135.02,134.98,23.2115542]
[1765174550167,8.096324,135.02,134.98,23.2115542]
[1765174550468,0.69,135.01,134.98,23.2115542]
[1765174551943,0.66,135.03,135.0,4.14892217]
[1765174552144,0.66,135.04,135.0,12.95886709]
[1765174552349,0.66,135.04,135.0,13.50886709]
[1765174552758,0.66,135.04,135.01,22.23787109]
[1765174553258,0.66,135.04,135.01,26.38679326]
[1765174553451,0.66,135.04,135.01,26.93679326]
[1765174553860,0.66,135.04,135.02,7.40631017]
[1765174554060,0.1,135.05,135.03,4.14892217]
[1765174554455,0.76,135.05,135.03,26.38349693]
[1765174554868,0.76,135.05,135.03,4.14892217]
[1765174555057,0.76,135.05,135.04,2.96460996]
[1765174555463,0.1,135.05,135.04,7.11353213]
[1765174555870,0.1,135.05,135.04,7.66353213]
[1765174556266,0.1,135.05,135.04,7.11353213]
[1765174558065,0.1,135.05,135.04,14.5187454]
[1765174560783,0.1,135.05,135.04,23.32869032]
[1765174560959,0.1,135.05,135.04,23.87869032]
[1765174566485,0.1,135.05,135.04,35.48863215]
[1765174566683,0.1,135.05,135.04,39.63755432]
[1765174566862,0.1,135.05,135.04,44.81294436]
[1765174568584,0.1,135.05,135.04,45.36294436]
[1765174572785,0.1,135.05,135.04,44.81294436]
[1765174573583,0.1,135.05,135.04,45.36294436]
[1765174573887,0.1,135.05,135.04,44.81294436]
[1765174575794,0.1,135.05,135.04,45.36294436]
[1765174576792,0.1,135.05,135.04,29.05408036]
[1765174580698,0.1,135.05,135.04,91.25408036]
[1765174581194,0.1,135.05,135.04,87.10515819]
[1765174581376,0.1,135.06,135.05,8.80994492]
[1765174581581,0.1,135.06,135.05,29.81773109]
[1765174583674,0.1,135.06,135.05,83.11353202]
[1765174583874,0.1,135.06,135.05,91.96160936]
[1765174590094,0.1,135.06,135.05,25.06268719]
[1765174590296,0.82,135.06,135.05,28.50353202]
[1765174590597,0.82,135.06,135.05,44.81239602]
[1765174593790,0.1,135.06,135.05,44.81239602]
[1765174596683,0.1,135.06,135.05,43.31634505]
[1765174597687,0.82,135.06,135.05,43.31634505]
[1765174599009,0.1,135.06,135.05,43.31634505]
[1765174599587,0.82,135.06,135.05,40.66347385]
[1765174606416,0.82,135.06,135.05,43.31634505]
[1765174607110,0.82,135.06,135.05,40.66347385]
[1765174607619,0.82,135.06,135.05,31.85352893]
[1765174607785,0.82,135.06,135.05,16.308864]
[1765174608112,0.82,135.06,135.04,23.71392404]
[1765174620020,0.1,135.06,135.05,8.80994492]
[1765174620322,0.1,135.06,135.05,12.01281612]
[1765174621624,0.77,135.06,135.04,23.71392404]
[1765174622731,0.77,135.06,135.04,26.36679524]
[1765174624737,0.77,135.06,135.04,23.71392404]
[1765174633269,911.45000001,135.06,135.04,23.71392404]
[1765174633677,0.67,135.05,135.04,23.71392404]
[1765174634270,0.67,135.05,135.03,7.4053871]
[1765174634471,0.67,135.05,135.02,7.40605725]
[1765174634852,3.3228712,135.05,135.02,7.40605725]
[1765174635371,0.67,135.04,135.02,7.40605725]
[1765174636214,911.45000001,135.06,135.03,2.6528712]
[1765174636358,0.67,135.05,135.03,7.40576168]
[1765174639774,0.67,135.05,135.03,10.05863288]
[1765174643086,910.78000001,135.06,135.03,10.05863288]
[1765174643279,911.45000001,135.06,135.03,10.05863288]
[1765174644085,911.45000001,135.06,135.03,10.60863288]
[1765174644674,910.78000001,135.06,135.03,10.05863288]
[1765174644881,911.45000001,135.06,135.03,10.05863288]
[1765174645990,911.45000001,135.06,135.04,10.05768567]
[1765174646189,910.78000001,135.06,135.05,11.46281612]
[1765174647992,910.78000001,135.06,135.05,18.86748105]
[1765174648397,911.45000001,135.06,135.04,23.71392864]
[1765174648576,0.67,135.05,135.04,23.71392864]
[1765174648982,0.67,135.05,135.04,16.308864]
[1765174649180,0.67,135.05,135.03,7.40551057]
[1765174649378,8.81,135.05,135.02,7.40617735]
[1765174649586,8.81,135.05,135.04,16.308864]
[1765174649799,8.14,135.05,135.04,16.308864]
[1765174650200,8.81,135.05,135.04,16.308864]
[1765174653797,8.81,135.05,135.02,7.40617735]
[1765174654005,0.67,135.04,135.02,23.71504135]
[1765174656392,0.67,135.04,134.94,0.55]
[1765174656393,2.6528712,135.03,134.94,0.55]
[1765174656598,2.6528712,135.03,134.94,7.41070105]
[1765174656599,2.6528712,134.98,134.94,7.41070105]
[1765174656801,10.7928712,134.98,134.95,16.308864]
[1765174657004,0.67,134.97,134.96,16.308864]
[1765174660407,0.67,134.97,134.94,7.41070105]
[1765174663015,0.67,135.01,134.98,23.71731989]
[1765174666625,0.67,135.01,134.98,27.87074884]
[1765174666841,11.55926531,135.03,134.99,0.55]
[1765174667021,11.55926531,135.03,135.0,4.15342895]
[1765174667022,0.67,135.03,135.0,4.15342895]
[1765174668038,910.78000001,135.06,135.02,4.15342895]
[1765174668375,910.78000001,135.06,135.01,4.15342895]
[1765174668376,0.67,135.05,135.01,4.15342895]
[1765174669131,0.67,135.05,135.03,4.15342895]
[1765174669300,0.67,135.05,135.03,16.308864]
[1765174669301,0.69,135.05,135.03,16.308864]
[1765174669504,0.69,135.05,135.01,11.55992133]
[1765174669704,0.69,135.05,135.01,27.86878533]
[1765174673632,8.09471464,135.05,135.01,27.86878533]
[1765174673834,0.66,135.04,135.01,27.86878533]
[1765174675849,0.66,135.04,135.03,16.308864]
[1765174678445,0.66,135.04,135.03,23.71462568]
[1765174683619,0.66,135.04,135.03,16.308864]
[1765174688052,0.66,135.04,135.0,7.40717707]
[1765174688053,12.21864222,135.04,135.0,7.40717707]
[1765174688232,12.29342895,135.03,135.0,7.40717707]
[1765174688429,12.96342895,135.03,135.0,7.40717707]
[1765174688637,0.67,135.02,135.0,7.40717707]
[1765174689078,0.67,135.02,134.97,50.55606832]
[1765174689079,12.29342895,135.01,134.97,7.40884535]
[1765174689357,4.15342895,134.99,134.96,7.40924141]
[1765174689575,12.31342895,134.99,134.98,16.308864]
[1765174690260,8.83,135.01,134.97,23.71772471]
[1765174690562,8.83,135.01,134.97,27.87115366]
[1765174690756,0.67,135.0,134.97,46.39378831]
[1765174691068,0.67,135.0,134.97,42.24035936]
[1765174692975,8.83,135.02,134.98,4.70342895]
[1765174693285,0.67,135.01,134.98,4.15342895]
[1765174694377,0.67,135.01,134.99,7.40795614]
[1765174699015,0.67,135.01,134.99,4.15342895]
[1765174699226,8.16,135.02,135.01,16.308864]
[1765174699425,8.83,135.03,135.01,16.308864]
[1765174699801,0.67,135.02,135.01,16.308864]
[1765174701918,0.67,135.02,134.99,7.4079409]
[1765174702528,8.07632883,135.02,134.98,23.7172023]
[1765174702899,0.68,135.01,135.0,16.308864]
[1765174706012,0.68,135.01,135.0,23.7162714]
[1765174706515,0.68,135.01,135.0,16.308864]